bitfinex-derivatives/quotes_SOLF0:USTF0_20240908
["timestamp","ask_amount","ask_price","bid_price","bid_amount"]
[1725801971367,3.8795,128.89,128.84,3.8807]
[1725801971569,3.8795,128.89,128.84,3.83138046]
[1725801971758,3.8795,128.89,128.77,14.17365337]
[1725801971960,3.8795,128.89,128.78,1.4257902]
[1725801972362,3.8795,128.89,128.84,3.8807]
[1725801972672,3.8795,128.89,128.84,7.71479637]
[1725801973761,3.8795,128.89,128.85,3.8806]
[1725801976365,3.8795,128.89,128.85,5.2175]
[1725801977562,2.5418,128.94,128.86,3.8803]
[1725801977966,3.8792,128.9,128.86,3.8803]
[1725801982571,3.879,128.91,128.87,3.8799]
[1725801983583,3.8786,128.92,128.88,3.8797]
[1725801985978,3.8788,128.91,128.87,3.8799]
[1725801989295,3.8786,128.92,128.87,3.8799]
[1725801990493,3.8786,128.92,128.88,3.8797]
[1725801990693,3.8781,128.94,128.85,4.0406]
[1725801990988,3.8781,128.94,128.89,3.8792]
[1725801991190,3.8781,128.94,128.9,1.3119]
[1725801992493,3.8781,128.94,128.9,5.191]
[1725801993494,1.3486,128.97,128.85,2.7037]
[1725801993699,1.3486,128.97,128.86,1.3912]
[1725801994195,3.8788,128.92,128.87,3.8799]
[1725801994396,1.3486,128.97,128.86,1.3912]
[1725801994790,3.8793,128.9,128.86,1.3912]
[1725801996193,3.8795,128.89,128.86,1.3912]
[1725801997197,3.8792,128.9,128.86,1.3912]
[1725801998295,3.8795,128.89,128.86,1.3912]
[1725801999598,1.3486,128.97,128.86,1.3912]
[1725801999997,3.8795,128.89,128.86,1.3912]
[1725802001796,3.8801,128.87,128.84,3.83409637]
[1725802001994,3.8801,128.87,128.83,3.8811]
[1725802002903,1.3054,128.92,128.79,4.0012]
[1725802003490,3.8805,128.86,128.81,3.8816]
[1725802003700,1.3054,128.92,128.79,4.0012]
[1725802003896,1.3054,128.92,128.82,3.8814]
[1725802004805,3.8803,128.87,128.83,3.8812]
[1725802005701,3.8803,128.86,128.83,3.8812]
[1725802006496,1.3054,128.92,128.83,3.8812]
[1725802007401,3.88,128.87,128.83,3.8812]
[1725802009304,3.88,128.87,128.79,4.0012]
[1725802009305,1.3054,128.92,128.79,4.0012]
[1725802009509,1.3054,128.92,128.8,1.42575874]
[1725802010109,3.8797,128.89,128.84,3.8807]
[1725802010314,3.8797,128.89,128.84,7.71082067]
[1725802010902,3.8797,128.89,128.85,3.8806]
[1725802013313,3.8798,128.88,128.84,7.71092067]
[1725802013513,3.8798,128.88,128.84,3.8808]
[1725802014109,3.8798,128.88,128.84,7.82641913]
[1725802014906,3.8798,128.88,128.84,3.94561913]
[1725802015108,3.8798,128.88,128.83,3.8811]
[1725802016915,3.8802,128.87,128.83,3.8811]
[1725802017419,1.3054,128.92,128.83,3.8811]
[1725802018123,3.88,128.87,128.83,3.8811]
[1725802018610,23.26,128.91,128.79,4.0012]
[1725802019418,3.8806,128.86,128.81,3.8816]
[1725802022113,1.3054,128.92,128.79,7.8891404]
[1725802022315,1.3054,128.92,128.8,1.42582476]
[1725802022621,3.88,128.88,128.83,3.8811]
[1725802022818,1.3054,128.92,128.83,3.8811]
[1725802024322,3.88,128.88,128.84,3.8809]
[1725802026126,3.8795,128.89,128.85,3.8806]
[1725802028826,3.8793,128.9,128.79,7.8891404]
[1725802029027,3.8793,128.9,128.8,1.42575521]
[1725802029530,3.8793,128.9,128.85,3.8805]
[1725802031632,3.8795,128.89,128.85,3.8805]
[1725802035443,3.8792,128.9,128.85,3.8805]
[1725802036141,3.8789,128.91,128.79,7.8891404]
[1725802036344,3.8789,128.91,128.8,9.18073708]
[1725802036550,1.3054,128.92,128.81,1.42573708]
[1725802036749,103.34981957,128.95,128.81,1.42573708]
[1725802037451,3.8787,128.92,128.87,3.8799]
[1725802037645,3.8787,128.92,128.87,7.79525417]
[1725802037843,3.8787,128.92,128.87,3.8799]
[1725802038048,3.8787,128.92,128.88,3.8797]
[1725802038350,3.8787,128.92,128.88,7.68748777]
[1725802039852,126.60981957,128.95,128.88,7.68748777]
[1725802040154,126.60981957,128.95,128.88,3.80778777]
[1725802040449,3.8793,128.9,128.8,7.755]
[1725802040752,3.8793,128.9,128.86,3.8801]
[1725802040951,3.8793,128.9,128.86,7.69680803]
[1725802049252,3.8789,128.91,128.87,3.88]
[1725802049457,3.8789,128.91,128.87,5.1747]
[1725802049654,126.60981957,128.95,128.87,1.2947]
[1725802049859,126.60981957,128.95,128.86,3.81670803]
[1725802050060,126.60981957,128.95,128.81,1.2947]
[1725802050260,3.8794,128.9,128.86,3.8803]
[1725802050460,3.8794,128.9,128.86,7.75238059]
[1725802057364,3.8794,128.89,128.86,3.87208059]
[1725802057574,3.8794,128.89,128.85,3.8804]
[1725802059268,3.8793,128.9,128.85,3.8804]
[1725802062167,3.8793,128.9,128.81,1.2947]
[1725802062371,3.8793,128.9,128.82,1.4256691]
[1725802062679,3.8793,128.9,128.81,1.2947]
[1725802062973,3.8793,128.9,128.82,1.42566889]
[1725802063170,3.8793,128.9,128.81,1.2947]
[1725802063470,3.8793,128.9,128.86,3.8802]
[1725802063665,3.8793,128.9,128.86,7.77206253]
[1725802063862,3.8793,128.9,128.86,3.8802]
[1725802064464,3.8793,128.9,128.86,7.74180712]
[1725802067069,3.879,128.91,128.87,3.88]
[1725802073178,3.8792,128.9,128.87,3.88]
[1725802073977,126.62981957,128.95,128.86,3.86160712]
[1725802074177,126.62981957,128.95,128.81,1.2947]
[1725802074580,126.62981957,128.95,128.85,3.8806]
[1725802074581,3.8796,128.89,128.85,3.8806]
[1725802080280,3.8793,128.9,128.85,3.8806]
[1725802081375,3.8794,128.89,128.85,3.8806]
[1725802082078,126.62981957,128.95,128.81,1.2947]
[1725802082876,3.8799,128.88,128.83,3.881]
[1725802089182,3.8801,128.87,128.82,3.8813]
[1725802092082,1.3369,128.92,128.81,1.2947]
[1725802092682,3.8791,128.91,128.82,1.42566418]
[1725802093086,3.8791,128.91,128.86,3.8802]
[1725802093281,3.8793,128.9,128.86,3.90751086]
[1725802093481,3.8793,128.9,128.81,1.2947]
[1725802093676,3.8793,128.9,128.82,1.42566862]
[1725802093878,3.8793,128.9,128.86,3.8802]
[1725802094082,3.8793,128.9,128.86,7.67897433]
[1725802096387,3.879,128.91,128.86,7.67897433]
[1725802097188,0.9662,128.94,128.86,7.67897433]
[1725802097795,3.8791,128.91,128.86,7.67897433]
[1725802098882,3.8791,128.91,128.86,3.79877433]
[1725802099087,0.9662,128.94,128.81,1.2947]
[1725802099286,0.9662,128.94,128.82,1.42564445]
[1725802099890,0.9662,128.94,128.81,1.2947]
[1725802100093,3.879,128.91,128.87,3.8799]
[1725802100287,3.879,128.91,128.87,7.83808788]
[1725802102490,103.34981957,128.95,128.87,7.83808788]
[1725802103094,3.8791,128.9,128.87,7.83808788]
[1725802105495,3.8791,128.9,128.87,3.95818788]
[1725802105694,3.8791,128.9,128.86,3.8802]
[1725802106286,3.8791,128.9,128.86,7.67199272]
[1725802110298,3.8791,128.9,128.86,3.79179272]
[1725802110603,3.8791,128.9,128.85,3.8805]
[1725802111300,3.8791,128.9,128.86,3.8803]
[1725802111501,3.8791,128.9,128.86,7.84539778]
[1725802111699,103.34981957,128.95,128.87,3.88]
[1725802111700,3.879,128.91,128.87,3.88]
[1725802112000,103.34981957,128.95,128.81,1.2947]
[1725802112201,103.34981957,128.95,128.86,3.8802]
[1725802112405,103.34981957,128.95,128.86,7.703701]
[1725802112806,3.8792,128.9,128.87,3.88]
[1725802113503,3.8792,128.9,128.87,7.79785354]
[1725802114906,3.8789,128.91,128.87,7.79785354]
[1725802115492,3.8791,128.9,128.87,7.79785354]
[1725802116599,3.8791,128.9,128.87,3.91785354]
[1725802116793,3.8791,128.9,128.86,3.8801]
[1725802117397,3.8791,128.9,128.86,7.81183525]
[1725802126505,3.8791,128.9,128.86,3.93173525]
[1725802126714,3.8791,128.9,128.85,3.8805]
[1725802127812,3.8794,128.89,128.85,3.8805]
[1725802128713,3.8793,128.9,128.86,3.8801]
[1725802128908,3.8793,128.9,128.86,7.78748007]
[1725802129315,3.8793,128.9,128.87,1.3925]
[1725802129918,141.43350613,128.94,128.86,3.90738007]
[1725802130103,141.43350613,128.94,128.81,1.3925]
[1725802130104,0.9664,128.93,128.81,1.3925]
[1725802130812,3.8797,128.88,128.84,3.8809]
[1725802142721,3.8797,128.88,128.83,3.8811]
[1725802143827,3.8797,128.88,128.81,1.3925]
[1725802144016,3.8796,128.89,128.81,1.3925]
[1725802144630,3.8796,128.89,128.84,3.8807]
[1725802156338,3.8796,128.89,128.85,1.3485]
[1725802157332,3.8793,128.9,128.85,1.3485]
[1725802158231,118.15350613,128.94,128.85,1.3485]
[1725802158232,3.8789,128.91,128.85,1.3485]
[1725802159230,118.15350613,128.94,128.87,3.8798]
[1725802159430,118.15350613,128.94,128.87,7.71028386]
[1725802159631,118.15350613,128.94,128.87,3.83048386]
[1725802159936,118.15350613,128.94,128.86,3.88]
[1725802159937,3.8791,128.91,128.86,3.88]
[1725802160240,3.8791,128.91,128.86,7.79078669]
[1725802165341,3.8792,128.9,128.86,7.79078669]
[1725802166538,3.879,128.91,128.87,3.88]
[1725802169048,3.879,128.91,128.88,3.8797]
[1725802169640,1.1828,128.96,128.9,3.8789]
[1725802170146,3.8781,128.94,128.9,3.8789]
[1725802171337,1.1828,128.96,128.89,3.8793]
[1725802171947,3.8783,128.93,128.89,3.8793]
[1725802174147,3.8781,128.94,128.9,3.8791]
[1725802181151,3.8781,128.94,128.91,3.8788]
[1725802183053,3.8782,128.93,128.9,3.879]
[1725802185550,3.8782,128.93,128.89,3.8793]
[1725802186658,3.8786,128.92,128.88,3.8796]
[1725802191956,3.8783,128.93,128.89,3.8794]
[1725802192155,2.325,128.97,128.89,3.8794]
[1725802192864,3.8781,128.94,128.9,3.8791]
[1725802194262,3.8776,128.96,128.87,2.6916]
[1725802194564,1.1827,129.0,128.88,1.42499012]
[1725802194765,3.877,128.97,128.92,3.8783]
[1725802194965,1.1827,129.0,128.89,1.2782]
[1725802195462,3.877,128.98,128.89,1.2782]
[1725802196367,3.877,128.98,128.93,3.878]
[1725802197066,3.877,128.98,128.93,7.70613211]
[1725802198265,3.877,128.98,128.94,3.8779]
[1725802200264,3.877,128.98,128.93,7.70623211]
[1725802200462,1.3972,129.01,128.89,1.2782]
[1725802201758,1.3972,129.01,128.89,5.1575]
[1725802202063,3.8783,128.93,128.89,5.1575]
[1725802202663,1.3972,129.01,128.89,5.1575]
[1725802202664,23.28,128.98,128.89,5.1575]
[1725802202968,2.1468,128.97,128.89,5.1575]
[1725802203360,1.3696,128.96,128.89,5.1575]
[1725802204166,3.8784,128.93,128.89,5.1575]
[1725802205367,3.8784,128.93,128.89,1.2782]
[1725802207858,3.878,128.94,128.89,1.2782]
[1725802208276,2.1484,129.02,128.9,3.8789]
[1725802208467,3.8778,128.95,128.9,3.8789]
[1725802208764,3.8778,128.95,128.89,5.18079279]
[1725802209170,3.8778,128.95,128.91,3.8786]
[1725802209864,24.6068,129.01,128.91,3.8786]
[1725802209865,3.8775,128.96,128.91,3.8786]
[1725802211774,3.8775,128.96,128.92,3.8785]
[1725802213169,3.8775,128.96,128.93,3.8782]
[1725802213366,3.8771,128.97,128.89,5.18079279]
[1725802213574,3.8771,128.97,128.93,3.878]
[1725802213774,3.8771,128.97,128.89,5.18079279]
[1725802215274,3.8771,128.97,128.93,3.878]
[1725802217070,3.8771,128.97,128.89,5.18079279]
[1725802217071,1.3268,129.01,128.92,3.8784]
[1725802217272,1.3268,129.01,128.89,5.18079279]
[1725802217777,3.8772,128.97,128.89,5.18079279]
[1725802218581,3.8772,128.97,128.92,3.8783]
[1725802218878,3.8773,128.96,128.92,3.8783]
[1725802219478,1.3268,129.01,128.92,3.8783]
[1725802219776,3.8772,128.97,128.93,3.8782]
[1725802220980,3.8768,128.98,128.89,5.18079279]
[1725802221481,1.3268,129.01,128.89,5.18079279]
[1725802223283,3.8766,128.99,128.89,5.18079279]
[1725802224380,3.8766,128.99,128.95,3.8776]
[1725802226378,3.8766,128.99,128.96,3.8772]
[1725802226584,3.8766,128.99,128.96,3.93781981]
[1725802226781,3.8766,128.99,128.89,5.18079279]
[1725802227187,3.8766,128.99,128.95,3.8774]
[1725802228183,3.8766,128.99,128.96,3.8773]
[1725802228382,3.8766,128.99,128.96,7.75387001]
[1725802229186,3.8766,128.99,128.97,3.877]
[1725802229785,3.8763,129.0,128.97,3.877]
[1725802229981,1.2645,129.04,128.98,3.8766]
[1725802230388,3.876,129.01,128.98,3.8766]
[1725802231891,3.876,129.01,128.96,3.87657001]
[1725802231892,3.8754,129.03,128.96,3.87657001]
[1725802232089,3.8754,129.03,128.97,2.7382]
[1725802232290,3.8754,129.03,128.97,6.6431567]
[1725802232493,3.8754,129.03,128.99,3.8762]
[1725802232694,3.8755,129.02,128.99,7.66135721]
[1725802234789,1.2645,129.04,128.99,7.66135721]
[1725802235097,3.8753,129.03,128.99,7.66135721]
[1725802235694,3.8753,129.03,129.0,3.876]
[1725802236394,3.8753,129.03,129.0,7.6747213]
[1725802237193,3.8747,129.05,129.01,3.8756]
[1725802237393,3.8747,129.05,129.0,3.7987213]
[1725802237602,1.3358,129.07,128.98,1.3349]
[1725802237894,1.3358,129.07,128.97,2.7382]
[1725802238096,1.3358,129.07,128.97,6.58768976]
[1725802238304,1.3358,129.07,128.98,3.8765]
[1725802238502,1.3358,129.07,128.98,7.76978241]
[1725802238705,1.3358,129.07,128.98,3.8765]
[1725802238893,1.3358,129.07,128.97,2.7382]
[1725802239089,1.3358,129.07,128.97,6.58226413]
[1725802239090,24.6158,129.07,128.97,6.58226413]
[1725802239301,24.6158,129.07,128.97,2.7382]
[1725802239705,3.8757,129.02,128.98,3.8765]
[1725802239902,1.3358,129.07,128.97,2.7382]
[1725802240109,1.3358,129.07,128.97,6.59117992]
[1725802240309,3.8753,129.03,128.99,3.8762]
[1725802240612,3.8753,129.03,128.99,7.74003011]
[1725802242119,3.875,129.04,129.0,3.876]
[1725802242817,1.3358,129.07,129.0,3.876]
[1725802242818,3.8752,129.03,129.0,3.876]
[1725802243018,1.3358,129.07,128.99,7.74013011]
[1725802243511,24.6158,129.07,128.99,3.86383011]
[1725802243711,24.6158,129.07,128.97,1.3881]
[1725802243914,24.6158,129.07,128.97,3.96110288]
[1725802244116,3.8765,128.99,128.97,3.96110288]
[1725802244610,3.8765,128.99,128.95,3.8774]
[1725802244803,3.8765,128.99,128.95,7.77920841]
[1725802245008,3.8765,128.99,128.95,3.8774]
[1725802245513,3.8765,128.99,128.95,7.69552543]
[1725802245719,3.8762,129.0,128.96,3.8772]
[1725802246110,1.3358,129.07,128.91,1.3519]
[1725802246315,3.8756,129.02,128.92,9.18762221]
[1725802246516,3.8756,129.02,128.92,7.763]
[1725802246726,1.3358,129.07,128.92,7.763]
[1725802246727,3.876,129.01,128.92,7.763]
[1725802247217,3.876,129.01,128.96,3.877]
[1725802247611,1.1812,129.06,128.92,7.763]
[1725802247612,3.8762,129.0,128.92,7.763]
[1725802247817,1.1812,129.06,128.95,3.8776]
[1725802248815,3.8764,129.0,128.95,3.8776]
[1725802249021,1.1812,129.06,128.95,3.8776]
[1725802249423,3.8764,129.0,128.95,3.8776]
[1725802249922,3.8764,129.0,128.96,3.8773]
[1725802251623,3.8759,129.01,128.96,3.8773]
[1725802252027,1.1812,129.06,128.96,3.8773]
[1725802252228,3.8763,129.0,128.95,3.8775]
[1725802252624,1.1812,129.06,128.92,7.763]
[1725802252920,1.1812,129.06,128.91,5.22041693]
[1725802253327,3.877,128.98,128.93,3.878]
[1725802257925,3.8771,128.97,128.93,3.878]
[1725802259927,3.8781,128.94,128.91,1.3519]
[1725802260241,3.8781,128.94,128.91,5.21537778]
[1725802260428,3.8781,128.94,128.91,1.3519]
[1725802261034,3.8781,128.94,128.91,5.20219847]
[1725802262639,3.8778,128.95,128.91,9.08089847]
[1725802263137,3.878,128.94,128.91,5.20219847]
[1725802265434,3.8784,128.93,128.91,1.3519]
[1725802265739,3.8784,128.93,128.91,3.82172766]
[1725802265942,3.8784,128.93,128.9,1.2818]
[1725802266436,3.8784,128.93,128.9,5.21519019]
[1725802267243,3.8781,128.94,128.9,2.5507]
[1725802267541,3.8781,128.94,128.9,6.4298]
[1725802267934,3.8781,128.94,128.9,10.25618027]
[1725802268139,3.8774,128.96,128.9,6.37708027]
[1725802268339,2.4524,129.0,128.91,1.3519]
[1725802268937,1.2712,129.0,128.92,3.8783]
[1725802269734,3.8772,128.97,128.92,3.8783]
[1725802269929,3.8772,128.97,128.93,3.8782]
[1725802272840,112.28498056,129.01,128.94,3.8778]
[1725802272841,111.31978056,129.01,128.94,3.8778]
[1725802273447,3.8766,128.99,128.94,3.8778]
[1725802274447,3.8762,129.0,128.95,3.8775]
[1725802274844,111.31978056,129.01,128.91,1.3519]
[1725802275147,3.8762,129.0,128.96,3.8771]
[1725802278347,1.3602,129.04,128.91,9.1149]
[1725802278552,0.9654,129.07,128.92,1.42451318]
[1725802278846,0.9654,129.07,128.93,7.763]
[1725802279045,3.8749,129.05,129.0,3.8759]
[1725802279751,3.8749,129.05,129.0,7.80342449]
[1725802280145,3.8749,129.05,129.01,3.8758]
[1725802281451,3.8749,129.05,129.01,7.67741995]
[1725802281653,3.8749,129.04,129.01,3.80161995]
[1725802281951,3.8749,129.04,129.0,3.876]
[1725802282355,3.8749,129.04,129.0,7.80277776]
[1725802282549,3.8749,129.04,129.0,3.876]
[1725802282754,3.8749,129.04,129.0,7.71520604]
[1725802294660,3.8753,129.03,129.0,3.83920604]
[1725802294863,3.8753,129.03,128.99,3.8763]
[1725802295459,3.8753,129.03,128.99,7.78137857]
[1725802296158,3.8758,129.02,128.99,3.90507857]
[1725802296353,3.8758,129.02,128.97,3.8769]
[1725802296756,3.8758,129.02,128.98,3.8765]
[1725802297062,3.8753,129.03,128.98,3.8765]
[1725802297269,0.9654,129.07,128.98,3.90469108]
[1725802297459,3.8747,129.05,128.96,1.287]
[1725802297964,3.8747,129.05,129.0,3.8759]
[1725802298561,2.444,129.09,128.96,5.18144505]
[1725802298562,3.8744,129.06,128.96,5.18144505]
[1725802298767,3.8744,129.06,128.97,1.42402302]
[1725802299260,0.9629,129.1,128.97,1.42402302]
[1725802300359,3.874,129.07,128.97,1.42402302]
[1725802300867,3.874,129.07,129.02,3.8753]
[1725802302562,3.8744,129.06,129.02,3.8753]
[1725802303068,3.8742,129.07,129.02,3.8753]
[1725802303365,3.8742,129.07,129.03,3.8751]
[1725802304067,0.9629,129.1,129.03,3.9377097]
[1725802304068,3.8745,129.06,129.03,3.9377097]
[1725802304265,3.8745,129.06,129.02,3.8755]
[1725802304669,3.8741,129.07,128.96,12.94444505]
[1725802304862,3.8741,129.07,128.97,1.4238844]
[1725802305165,3.8741,129.07,129.02,3.8753]
[1725802306461,3.8741,129.07,129.03,3.8752]
[1725802306663,3.8741,129.07,129.03,7.80206095]
[1725802306867,3.8741,129.07,129.03,3.8752]
[1725802307472,3.8741,129.07,129.03,7.76804884]
[1725802308770,3.8741,129.07,129.03,3.89284884]
[1725802308958,3.8741,129.07,129.02,3.8754]
[1725802310470,3.8743,129.06,129.02,3.8754]
[1725802316966,3.8746,129.05,129.01,3.8758]
[1725802317172,1.1788,129.09,128.96,12.94444505]
[1725802317372,1.1788,129.09,128.97,1.4239296]
[1725802318275,3.8751,129.04,129.0,3.8761]
[1725802319876,1.1788,129.09,129.01,3.8758]
[1725802319877,3.8748,129.05,129.01,3.8758]
[1725802320076,1.1788,129.09,128.96,5.18144505]
[1725802321370,24.4588,129.09,128.96,5.18144505]
[1725802321574,24.4588,129.09,128.96,3.89444505]
[1725802321769,3.8763,129.0,128.95,6.5885]
[1725802321971,3.8763,129.0,128.95,10.40204002]
[1725802322679,3.8763,129.0,128.96,3.8773]
[1725802324083,3.8759,129.01,128.96,3.8773]
[1725802327477,0.9626,129.05,128.95,1.3345]
[1725802327684,1.1805,129.04,128.95,3.95736434]
[1725802327975,125.2836042,129.02,128.91,3.8788]
[1725802328172,1.3909,129.01,128.91,3.8788]
[1725802328380,3.8778,128.95,128.91,3.8788]
[1725802328981,0.9643,129.0,128.89,2.7003]
[1725802329674,3.8783,128.93,128.89,10.43608914]
[1725802330675,3.878,128.94,128.9,3.8791]
[1725802331390,3.8774,128.96,128.91,3.8786]
[1725802331686,0.9643,129.0,128.89,6.55688914]
[1725802332089,1.3909,129.01,128.89,6.55688914]
[1725802332282,1.3909,129.01,128.9,1.42475316]
[1725802332482,1.3909,129.01,128.89,6.55688914]
[1725802332685,3.8764,128.99,128.94,3.8777]
[1725802337092,3.8767,128.98,128.94,3.8777]
[1725802337593,1.3909,129.01,128.93,3.8782]
[1725802337890,1.3909,129.01,128.89,6.55688914]
[1725802338084,1.3909,129.01,128.92,3.8783]
[1725802338289,1.3909,129.01,128.89,6.55688914]
[1725802338798,3.8775,128.96,128.89,6.55688914]
[1725802339300,3.8775,128.96,128.91,3.8786]
[1725802339490,3.8775,128.96,128.89,6.55688914]
[1725802339997,3.8775,128.96,128.91,3.8788]
[1725802342095,3.8775,128.96,128.92,3.8785]
[1725802343793,1.3909,129.01,128.89,6.55688914]
[1725802343794,1.3909,129.01,128.93,3.8782]
[1725802346097,3.8772,128.97,128.93,3.8782]
[1725802348295,3.8772,128.97,128.94,3.8779]
[1725802348807,3.8772,128.97,128.93,3.8781]
[1725802351497,1.3909,129.01,128.92,3.8785]
[1725802352101,3.8773,128.97,128.92,3.8785]
[1725802353801,3.8773,128.96,128.92,3.8785]
[1725802354305,1.3909,129.01,128.93,3.878]
[1725802355000,1.3909,129.01,128.94,3.8779]
[1725802355398,3.8763,129.0,128.89,6.55688914]
[1725802355701,3.8763,129.0,128.9,1.42473635]
[1725802356109,3.8763,129.0,128.95,3.8774]
[1725802356309,3.8765,128.99,128.95,3.8774]
[1725802362196,3.8767,128.98,128.95,3.8774]
[1725802364109,3.8771,128.97,128.94,3.8778]
[1725802365206,3.8771,128.97,128.94,7.66171068]
[1725802365412,3.8771,128.97,128.94,3.78391068]
[1725802365604,3.8771,128.97,128.93,3.8781]
[1725802366106,3.8771,128.97,128.93,7.74807984]
[1725802368812,1.3909,129.01,128.89,2.7003]
[1725802369013,1.3909,129.01,128.89,6.59130073]
[1725802369711,3.8775,128.96,128.89,6.59130073]
[1725802370216,3.8775,128.96,128.91,3.8786]
[1725802375521,3.8778,128.95,128.91,3.8786]
[1725802384726,3.8774,128.96,128.92,3.8785]
[1725802386427,3.8771,128.97,128.93,3.8782]
[1725802386722,1.3909,129.01,128.89,6.59130073]
[1725802387032,1.3909,129.01,128.93,3.878]
[1725802387033,3.8767,128.98,128.93,3.878]
[1725802387227,3.8767,128.98,128.89,6.59130073]
[1725802387528,1.3909,129.01,128.89,6.59130073]
[1725802388022,3.8771,128.97,128.92,3.8783]
[1725802388222,1.3909,129.01,128.92,3.8783]
[1725802388423,3.8774,128.96,128.92,3.8783]
[1725802389621,1.3909,129.01,128.91,3.8786]
[1725802389825,0.9655,129.0,128.91,3.8786]
[1725802390026,3.8775,128.96,128.91,3.8786]
[1725802391332,3.8777,128.95,128.91,3.8786]
[1725802391727,3.8775,128.96,128.91,3.8786]
[1725802392436,3.8775,128.96,128.92,3.8785]
[1725802394517,0.9655,129.0,128.89,10.47060073]
[1725802394718,1.1818,128.99,128.89,5.23300073]
[1725802394928,1.1818,128.99,128.89,3.89100073]
[1725802395129,3.8784,128.93,128.88,5.2014]
[1725802395524,3.8784,128.93,128.88,9.00528531]
[1725802395930,24.4518,128.99,128.88,9.00528531]
[1725802396124,24.4518,128.99,128.89,3.8794]
[1725802396428,3.8781,128.94,128.89,3.8794]
[1725802396724,1.1818,128.99,128.88,5.12578531]
[1725802396929,3.878,128.94,128.88,5.12578531]
[1725802397130,1.1818,128.99,128.88,5.12578531]
[1725802398127,3.8778,128.95,128.91,3.8786]
[1725802399335,3.8781,128.94,128.9,3.8789]
[1725802403730,3.8782,128.93,128.9,3.8789]
[1725802405932,3.8781,128.94,128.9,3.8789]
[1725802409042,3.8783,128.93,128.89,3.8793]
[1725802414044,1.3241,128.97,128.88,3.80388531]
[1725802414045,24.5941,128.97,128.88,3.80388531]
[1725802414244,0.9654,128.96,128.86,1.358]
[1725802414444,3.8791,128.91,128.86,5.21814582]
[1725802414640,0.9654,128.96,128.86,5.21814582]
[1725802415033,3.8793,128.9,128.86,5.21814582]
[1725802415441,3.8793,128.9,128.86,9.09814582]
[1725802416750,3.8793,128.9,128.86,5.21814582]
[1725802416945,0.9654,128.96,128.86,5.21814582]
[1725802417146,3.879,128.91,128.86,5.21814582]
[1725802417344,3.879,128.91,128.86,9.09814582]
[1725802417941,3.879,128.91,128.87,3.88]
[1725802418648,3.879,128.91,128.87,7.70467028]
[1725802423153,3.8788,128.92,128.88,3.8797]
[1725802423950,3.879,128.91,128.88,3.87402013]
[1725802424152,3.879,128.91,128.87,3.8799]
[1725802424551,3.8791,128.9,128.86,5.2382]
[1725802424952,0.9654,128.96,128.86,1.358]
[1725802425454,3.8793,128.9,128.86,9.03794318]
[1725802425656,3.8793,128.9,128.86,5.2383]
[1725802426155,3.8793,128.9,128.86,9.05035398]
[1725802426361,3.8789,128.91,128.87,3.88]
[1725802426551,0.9654,128.96,128.86,5.17005398]
[1725802426750,0.9654,128.96,128.87,2.6237]
[1725802427050,0.9654,128.96,128.88,3.8796]
[1725802427051,3.8787,128.92,128.88,3.8796]
[1725802429258,3.8789,128.91,128.88,3.8796]
[1725802433546,3.8786,128.92,128.88,3.8796]
[1725802433764,1.3241,128.97,128.89,3.8794]
[1725802434264,3.8784,128.93,128.89,3.8794]
[1725802435460,1.3241,128.97,128.89,3.8794]
[1725802438057,3.8784,128.93,128.87,2.6237]
[1725802438265,1.3241,128.97,128.87,2.6237]
[1725802439165,3.8778,128.95,128.92,3.8783]
[1725802440665,3.878,128.94,128.91,3.8788]
[1725802441360,3.8777,128.95,128.92,3.8785]
[1725802441561,2.3263,129.0,128.87,2.6237]
[1725802442065,3.8771,128.97,128.93,3.878]